fUSD/lending_fUSD_20260610
["ID","MTS","AMOUNT","RATE_DAILY","PERIOD"]
[424707274,1781068232000,-864.32953375,0.00012297,2]
[424707283,1781068232000,-8225.49351013,0.00012397,2]
[424707271,1781068232000,-4000.0,0.0001229,2]
[424707279,1781068232000,-1033.18011198,0.00012388,2]
[424707280,1781068232000,-839.98274941,0.00012388,2]
[424707281,1781068232000,-3020.22126725,0.00012388,2]
[424707282,1781068232000,-4786.96338757,0.00012397,2]
[424707272,1781068232000,-1609.82798702,0.00012297,2]
[424707276,1781068232000,-1960.40102563,0.00012297,2]
[424707277,1781068232000,-158.58,0.00012329,2]
[424707273,1781068232000,-3222.67876345,0.00012297,2]
[424707275,1781068232000,-740.01793856,0.00012297,2]
[424707278,1781068232000,-4893.38412864,0.00012387,2]
[424707320,1781068238000,-500.0,0.00012597,2]
[424707315,1781068238000,-500.0,0.00012597,2]
[424707314,1781068238000,-500.0,0.00012597,2]
[424707317,1781068238000,-500.0,0.00012597,2]
[424707316,1781068238000,-500.0,0.00012597,2]
[424707318,1781068238000,-500.0,0.00012597,2]
[424707321,1781068238000,-500.0,0.00012597,2]
[424707323,1781068238000,-500.0,0.00012597,2]
[424707322,1781068238000,-500.0,0.00012597,2]
[424707319,1781068238000,-500.0,0.00012597,2]
[424707330,1781068238000,-500.0,0.00012597,2]
[424707324,1781068238000,-500.0,0.00012597,2]
[424707327,1781068238000,-500.0,0.00012597,2]
[424707328,1781068238000,-500.0,0.00012597,2]
[424707326,1781068238000,-500.0,0.00012597,2]
[424707312,1781068238000,-1076.45687075,0.00012597,3]
[424707332,1781068238000,-500.0,0.00012597,2]
[424707333,1781068238000,-500.0,0.00012597,2]
[424707334,1781068238000,-500.0,0.00012597,2]
[424707331,1781068238000,-500.0,0.00012597,2]
[424707329,1781068238000,-500.0,0.00012597,2]
[424707325,1781068238000,-500.0,0.00012597,2]
[424707308,1781068238000,-162.09715989,0.00012568,2]
[424707304,1781068238000,-250.0,0.00012553,2]
[424707309,1781068238000,-4000.0,0.00012597,2]
[424707288,1781068238000,-2207715.1307023,0.00012397,2]
[424707289,1781068238000,-150.0,0.00012397,2]
[424707293,1781068238000,-1500000.0,0.00012398,2]
[424707291,1781068238000,-6821.1652,0.00012398,2]
[424707292,1781068238000,-9443.1257,0.00012398,2]
[424707287,1781068238000,-2618.29389384,0.00012298,2]
[424707290,1781068238000,-180.54134098,0.00012398,2]
[424707295,1781068238000,-4228.88,0.00012497,2]
[424707294,1781068238000,-186.47678224,0.00012398,2]
[424707296,1781068238000,-287.95,0.00012497,2]
[424707313,1781068238000,-1084.70247111,0.00012597,3]
[424707298,1781068238000,-24209.66824179,0.00012498,2]
[424707297,1781068238000,-2042.56656923,0.00012497,2]
[424707299,1781068238000,-500.1525,0.00012498,2]
[424707301,1781068238000,-2580.6583,0.00012498,2]
[424707303,1781068238000,-2695.294935,0.00012541,2]
[424707302,1781068238000,-2500.0,0.00012498,2]
[424707305,1781068238000,-168.28,0.00012556,2]
[424707335,1781068238000,-500.0,0.00012597,2]
[424707307,1781068238000,-162.09715989,0.00012568,2]
[424707306,1781068238000,-162.09715989,0.00012568,2]
[424707310,1781068238000,-500.0,0.00012597,2]
[424707300,1781068238000,-33274.8187,0.00012498,2]
[424707336,1781068238000,-500.0,0.00012597,2]
[424707311,1781068238000,-1076.45687074,0.00012597,3]
[424707337,1781068238000,-500.0,0.00012597,2]
[424707360,1781068238000,-500.0,0.00012597,2]
[424707364,1781068238000,-500.0,0.00012597,2]
[424707368,1781068238000,-500.0,0.00012597,2]
[424707367,1781068238000,-500.0,0.00012597,2]
[424707369,1781068238000,-500.0,0.00012597,2]
[424707376,1781068238000,-500.0,0.00012597,2]
[424707373,1781068238000,-500.0,0.00012597,2]
[424707375,1781068238000,-500.0,0.00012597,2]
[424707371,1781068238000,-500.0,0.00012597,2]
[424707372,1781068238000,-500.0,0.00012597,2]
[424707361,1781068238000,-500.0,0.00012597,2]
[424707370,1781068238000,-500.0,0.00012597,2]
[424707378,1781068238000,-500.0,0.00012597,2]
[424707379,1781068238000,-626.04001537,0.00012597,2]
[424707380,1781068238000,-500.0,0.00012597,2]
[424707381,1781068238000,-500.0,0.00012597,2]
[424707384,1781068238000,-500.0,0.00012597,2]
[424707385,1781068238000,-500.0,0.00012597,2]
[424707383,1781068238000,-500.0,0.00012597,2]
[424707386,1781068238000,-500.0,0.00012597,2]
[424707382,1781068238000,-500.0,0.00012597,2]
[424707338,1781068238000,-500.0,0.00012597,2]
[424707377,1781068238000,-500.0,0.00012597,2]
[424707358,1781068238000,-500.0,0.00012597,2]
[424707374,1781068238000,-500.0,0.00012597,2]
[424707366,1781068238000,-500.0,0.00012597,2]
[424707340,1781068238000,-500.0,0.00012597,2]
[424707362,1781068238000,-500.0,0.00012597,2]
[424707341,1781068238000,-414.06983758,0.00012597,2]
[424707342,1781068238000,-500.0,0.00012597,2]
[424707339,1781068238000,-500.0,0.00012597,2]
[424707343,1781068238000,-500.0,0.00012597,2]
[424707344,1781068238000,-500.0,0.00012597,2]
[424707346,1781068238000,-500.0,0.00012597,2]
[424707345,1781068238000,-500.0,0.00012597,2]
[424707347,1781068238000,-500.0,0.00012597,2]
[424707348,1781068238000,-500.0,0.00012597,2]
[424707350,1781068238000,-500.0,0.00012597,2]
[424707387,1781068238000,-500.0,0.00012597,2]
[424707363,1781068238000,-500.0,0.00012597,2]
[424707349,1781068238000,-500.0,0.00012597,2]
[424707351,1781068238000,-500.0,0.00012597,2]
[424707352,1781068238000,-500.0,0.00012597,2]
[424707354,1781068238000,-500.0,0.00012597,2]
[424707355,1781068238000,-500.0,0.00012597,2]
[424707357,1781068238000,-500.0,0.00012597,2]
[424707356,1781068238000,-500.0,0.00012597,2]
[424707359,1781068238000,-500.0,0.00012597,2]
[424707365,1781068238000,-500.0,0.00012597,2]
[424707353,1781068238000,-500.0,0.00012597,2]
[424707426,1781068239000,-518.6,0.0001326,2]
[424707429,1781068239000,-203.66,0.00013343,2]
[424707425,1781068239000,-4000.0,0.00013211,2]
[424707422,1781068239000,-6787.42726137,0.00013041,2]
[424707424,1781068239000,-500.0,0.00013145,2]
[424707415,1781068239000,-9999.99,0.00012893,2]
[424707421,1781068239000,-24209.66824173,0.00013032,2]
[424707418,1781068239000,-4000.0,0.00012904,2]
[424707414,1781068239000,-500.0,0.00012871,2]
[424707423,1781068239000,-168.28,0.00013054,2]
[424707417,1781068239000,-160.0,0.000129,2]
[424707420,1781068239000,-925.39,0.00012987,2]
[424707427,1781068239000,-1464.85,0.00013269,2]
[424707434,1781068239000,-356.08507408,0.00013414,2]
[424707430,1781068239000,-443.0,0.00013393,2]
[424707431,1781068239000,-446.0,0.00013393,2]
[424707432,1781068239000,-441.0,0.00013393,2]
[424707433,1781068239000,-6787.42726137,0.00013413,2]
[424707438,1781068239000,-303.61066796,0.00013429,2]
[424707442,1781068239000,-4000.0,0.00013518,2]
[424707441,1781068239000,-430.530229,0.00013492,2]
[424707437,1781068239000,-201.056179,0.00013425,2]
[424707436,1781068239000,-225.543917,0.00013425,2]
[424707440,1781068239000,-255.0,0.00013488,2]
[424707435,1781068239000,-500.0,0.00013419,2]
[424707428,1781068239000,-24209.66824173,0.00013299,2]
[424707443,1781068239000,-168.28,0.00013551,2]
[424707390,1781068239000,-500.0,0.00012597,2]
[424707412,1781068239000,-24209.66824173,0.00012765,2]
[424707439,1781068239000,-303.48980098,0.00013429,2]
[424707389,1781068239000,-500.0,0.00012597,2]
[424707388,1781068239000,-500.0,0.00012597,2]
[424707394,1781068239000,-350.0,0.00012597,2]
[424707392,1781068239000,-500.0,0.00012597,2]
[424707398,1781068239000,-500.0,0.00012597,2]
[424707395,1781068239000,-500.0,0.00012597,2]
[424707391,1781068239000,-500.0,0.00012597,2]
[424707397,1781068239000,-500.0,0.00012597,2]
[424707396,1781068239000,-500.0,0.00012597,2]
[424707393,1781068239000,-500.0,0.00012597,2]
[424707399,1781068239000,-500.0,0.00012597,2]
[424707419,1781068239000,-150.0,0.00012987,2]
[424707400,1781068239000,-500.0,0.00012597,2]
[424707406,1781068239000,-255.82010105,0.00012598,2]
[424707404,1781068239000,-423.38637071,0.00012597,2]
[424707402,1781068239000,-500.0,0.00012597,2]
[424707401,1781068239000,-161.34184717,0.00012597,2]
[424707405,1781068239000,-322.93372352,0.00012597,2]
[424707408,1781068239000,-2000.0,0.00012598,2]
[424707407,1781068239000,-250.0,0.00012598,2]
[424707410,1781068239000,-6787.42726137,0.00012669,2]
[424707409,1781068239000,-2000.0,0.00012598,2]
[424707411,1781068239000,-203.66,0.00012708,2]
[424707413,1781068239000,-266.59289854,0.0001285,7]
[424707416,1781068239000,-7336.31,0.00012893,2]
[424707403,1781068239000,-500.0,0.00012597,2]
[424707444,1781068239000,-201.314175,0.00013556,2]
[424707477,1781068239000,-500.0,0.00013698,2]
[424707446,1781068239000,-500.0,0.00013564,2]
[424707480,1781068239000,-500.0,0.00013698,2]
[424707475,1781068239000,-640.46,0.00013698,2]
[424707482,1781068239000,-500.0,0.00013698,2]
[424707483,1781068239000,-502.1677605,0.00013698,2]
[424707485,1781068239000,-500.0,0.00013698,2]
[424707484,1781068239000,-500.0,0.00013698,2]
[424707486,1781068239000,-500.0,0.00013698,2]
[424707488,1781068239000,-500.0,0.00013698,2]
[424707493,1781068239000,-500.0,0.00013698,2]
[424707489,1781068239000,-500.0,0.00013698,2]
[424707487,1781068239000,-500.0,0.00013698,2]
[424707491,1781068239000,-500.0,0.00013698,2]
[424707490,1781068239000,-500.0,0.00013698,2]
[424707492,1781068239000,-500.0,0.00013698,2]
[424707494,1781068239000,-500.0,0.00013698,2]
[424707495,1781068239000,-500.0,0.00013698,2]
[424707497,1781068239000,-500.0,0.00013698,2]
[424707499,1781068239000,-500.0,0.00013698,2]
[424707502,1781068239000,-510.79675376,0.00013698,2]
[424707500,1781068239000,-500.0,0.00013698,2]
[424707498,1781068239000,-500.0,0.00013698,2]
[424707501,1781068239000,-500.0,0.00013698,2]
[424707503,1781068239000,-500.0,0.00013698,2]
[424707445,1781068239000,-290.740205,0.00013559,2]
[424707496,1781068239000,-500.0,0.00013698,2]
[424707473,1781068239000,-640.46,0.00013698,2]
[424707478,1781068239000,-500.0,0.00013698,2]
[424707504,1781068239000,-500.0,0.00013698,2]
[424707476,1781068239000,-640.46,0.00013698,2]
[424707479,1781068239000,-500.0,0.00013698,2]
[424707447,1781068239000,-24209.66824173,0.00013566,2]
[424707451,1781068239000,-181.232001,0.00013624,2]
[424707452,1781068239000,-356.08507408,0.00013674,2]
[424707456,1781068239000,-502.29186961,0.00013698,2]
[424707455,1781068239000,-500.0,0.00013698,2]
[424707454,1781068239000,-500.0,0.00013698,2]
[424707453,1781068239000,-541.3104,0.00013693,2]
[424707457,1781068239000,-353.59279344,0.00013698,2]
[424707458,1781068239000,-500.0,0.00013698,2]
[424707460,1781068239000,-769.08,0.00013698,2]
[424707459,1781068239000,-769.08,0.00013698,2]
[424707461,1781068239000,-769.08,0.00013698,2]
[424707449,1781068239000,-399.88934784,0.00013606,7]
[424707464,1781068239000,-769.08,0.00013698,2]
[424707463,1781068239000,-769.08,0.00013698,2]
[424707474,1781068239000,-640.46,0.00013698,2]
[424707472,1781068239000,-640.46,0.00013698,2]
[424707471,1781068239000,-640.46,0.00013698,2]
[424707465,1781068239000,-500.0,0.00013698,2]
[424707481,1781068239000,-500.0,0.00013698,2]
[424707468,1781068239000,-500.0,0.00013698,2]
[424707469,1781068239000,-500.0,0.00013698,2]
[424707466,1781068239000,-500.0,0.00013698,2]
[424707462,1781068239000,-769.08,0.00013698,2]
[424707470,1781068239000,-500.0,0.00013698,2]
[424707467,1781068239000,-500.0,0.00013698,2]
[424707541,1781068240000,-500.0,0.00013698,2]
[424707544,1781068240000,-500.0,0.00013698,2]
[424707539,1781068240000,-695.44,0.00013698,2]
[424707540,1781068240000,-500.0,0.00013698,2]
[424707537,1781068240000,-695.44,0.00013698,2]
[424707536,1781068240000,-695.44,0.00013698,2]
[424707533,1781068240000,-695.44,0.00013698,2]
[424707534,1781068240000,-695.44,0.00013698,2]
[424707543,1781068240000,-500.0,0.00013698,2]
[424707538,1781068240000,-695.44,0.00013698,2]
[424707530,1781068240000,-695.44,0.00013698,2]
[424707550,1781068240000,-500.0,0.00013698,2]
[424707547,1781068240000,-500.0,0.00013698,2]
[424707545,1781068240000,-500.0,0.00013698,2]
[424707546,1781068240000,-500.0,0.00013698,2]
[424707548,1781068240000,-500.0,0.00013698,2]
[424707549,1781068240000,-500.0,0.00013698,2]
[424707552,1781068240000,-500.0,0.00013698,2]
[424707555,1781068240000,-500.0,0.00013698,2]
[424707553,1781068240000,-500.0,0.00013698,2]
[424707554,1781068240000,-500.0,0.00013698,2]
[424707551,1781068240000,-500.0,0.00013698,2]
[424707535,1781068240000,-695.44,0.00013698,2]
[424707542,1781068240000,-500.0,0.00013698,2]
[424707532,1781068240000,-695.44,0.00013698,2]
[424707517,1781068240000,-500.0,0.00013698,2]
[424707529,1781068240000,-695.44,0.00013698,2]
[424707505,1781068240000,-500.0,0.00013698,2]
[424707506,1781068240000,-500.0,0.00013698,2]
[424707509,1781068240000,-500.0,0.00013698,2]
[424707508,1781068240000,-500.0,0.00013698,2]
[424707507,1781068240000,-504.03574652,0.00013698,2]
[424707510,1781068240000,-500.0,0.00013698,2]
[424707511,1781068240000,-500.0,0.00013698,2]
[424707515,1781068240000,-500.0,0.00013698,2]
[424707514,1781068240000,-500.0,0.00013698,2]
[424707513,1781068240000,-500.0,0.00013698,2]
[424707512,1781068240000,-500.0,0.00013698,2]
[424707516,1781068240000,-500.0,0.00013698,2]
[424707559,1781068240000,-500.0,0.00013698,2]
[424707521,1781068240000,-500.0,0.00013698,2]
[424707524,1781068240000,-500.0,0.00013698,2]
[424707519,1781068240000,-500.0,0.00013698,2]
[424707523,1781068240000,-500.0,0.00013698,2]
[424707526,1781068240000,-500.0,0.00013698,2]
[424707520,1781068240000,-500.0,0.00013698,2]
[424707525,1781068240000,-500.0,0.00013698,2]
[424707522,1781068240000,-500.0,0.00013698,2]
[424707527,1781068240000,-500.0,0.00013698,2]
[424707528,1781068240000,-500.0,0.00013698,2]
[424707531,1781068240000,-695.44,0.00013698,2]
[424707558,1781068240000,-500.0,0.00013698,2]
[424707518,1781068240000,-289.86791566,0.00013698,2]
[424707556,1781068240000,-500.0,0.00013698,2]
[424707589,1781068240000,-500.0,0.00013698,2]
[424707587,1781068240000,-500.0,0.00013698,2]
[424707586,1781068240000,-407.97689245,0.00013698,2]
[424707590,1781068240000,-500.0,0.00013698,2]
[424707591,1781068240000,-500.0,0.00013698,2]
[424707593,1781068240000,-626.7966461,0.00013698,2]
[424707594,1781068240000,-500.0,0.00013698,2]
[424707595,1781068240000,-500.0,0.00013698,2]
[424707602,1781068240000,-500.0,0.00013698,2]
[424707596,1781068240000,-500.0,0.00013698,2]
[424707598,1781068240000,-500.0,0.00013698,2]
[424707588,1781068240000,-500.0,0.00013698,2]
[424707597,1781068240000,-500.0,0.00013698,2]
[424707603,1781068240000,-500.0,0.00013698,2]
[424707600,1781068240000,-500.0,0.00013698,2]
[424707601,1781068240000,-500.0,0.00013698,2]
[424707604,1781068240000,-2042.56656922,0.00013699,2]
[424707608,1781068240000,-24488.63,0.00013699,2]
[424707609,1781068240000,-22258.35,0.00013699,2]
[424707606,1781068240000,-188.49,0.00013699,2]
[424707605,1781068240000,-200.0,0.00013699,2]
[424707611,1781068240000,-1875.9087212,0.00013699,2]
[424707610,1781068240000,-1875.9087212,0.00013699,2]
[424707557,1781068240000,-500.0,0.00013698,2]
[424707599,1781068240000,-500.0,0.00013698,2]
[424707585,1781068240000,-500.0,0.00013698,2]
[424707607,1781068240000,-2500.0,0.00013699,2]
[424707584,1781068240000,-500.0,0.00013698,2]
[424707592,1781068240000,-500.0,0.00013698,2]
[424707561,1781068240000,-500.0,0.00013698,2]
[424707560,1781068240000,-500.0,0.00013698,2]
[424707564,1781068240000,-413.03435697,0.00013698,2]
[424707566,1781068240000,-500.0,0.00013698,2]
[424707562,1781068240000,-500.0,0.00013698,2]
[424707568,1781068240000,-500.0,0.00013698,2]
[424707565,1781068240000,-500.0,0.00013698,2]
[424707571,1781068240000,-500.0,0.00013698,2]
[424707569,1781068240000,-500.0,0.00013698,2]
[424707567,1781068240000,-500.0,0.00013698,2]
[424707570,1781068240000,-500.0,0.00013698,2]
[424707563,1781068240000,-500.0,0.00013698,2]
[424707572,1781068240000,-500.0,0.00013698,2]
[424707573,1781068240000,-500.0,0.00013698,2]
[424707582,1781068240000,-500.0,0.00013698,2]
[424707579,1781068240000,-500.0,0.00013698,2]
[424707577,1781068240000,-500.0,0.00013698,2]
[424707581,1781068240000,-500.0,0.00013698,2]
[424707578,1781068240000,-500.0,0.00013698,2]
[424707576,1781068240000,-500.0,0.00013698,2]
[424707575,1781068240000,-500.0,0.00013698,2]
[424707574,1781068240000,-506.56848537,0.00013698,2]
[424707580,1781068240000,-500.0,0.00013698,2]
[424707583,1781068240000,-500.0,0.00013698,2]
[424707636,1781068241000,-1875.9087212,0.00013699,2]
[424707638,1781068241000,-1875.9087212,0.00013699,2]
[424707642,1781068241000,-1875.9087212,0.00013699,2]
[424707637,1781068241000,-1875.9087212,0.00013699,2]
[424707645,1781068241000,-1875.9087212,0.00013699,2]
[424707644,1781068241000,-1875.9087212,0.00013699,2]
[424707641,1781068241000,-1875.9087212,0.00013699,2]
[424707639,1781068241000,-1875.9087212,0.00013699,2]
[424707643,1781068241000,-1875.9087212,0.00013699,2]
[424707640,1781068241000,-1875.9087212,0.00013699,2]
[424707654,1781068241000,-1875.9087212,0.00013699,2]
[424707647,1781068241000,-1875.9087212,0.00013699,2]
[424707648,1781068241000,-1875.9087212,0.00013699,2]
[424707650,1781068241000,-1875.9087212,0.00013699,2]
[424707649,1781068241000,-1875.9087212,0.00013699,2]
[424707652,1781068241000,-1875.9087212,0.00013699,2]
[424707657,1781068241000,-1875.9087212,0.00013699,2]
[424707653,1781068241000,-1875.9087212,0.00013699,2]
[424707632,1781068241000,-1875.9087212,0.00013699,2]
[424707655,1781068241000,-1875.9087212,0.00013699,2]
[424707646,1781068241000,-1875.9087212,0.00013699,2]
[424707630,1781068241000,-1875.9087212,0.00013699,2]
[424707617,1781068241000,-1875.9087212,0.00013699,2]
[424707633,1781068241000,-1875.9087212,0.00013699,2]
[424707656,1781068241000,-1875.9087212,0.00013699,2]
[424707612,1781068241000,-1875.9087212,0.00013699,2]
[424707613,1781068241000,-1875.9087212,0.00013699,2]
[424707614,1781068241000,-1875.9087212,0.00013699,2]
[424707616,1781068241000,-1875.9087212,0.00013699,2]
[424707615,1781068241000,-1875.9087212,0.00013699,2]
[424707622,1781068241000,-1875.9087212,0.00013699,2]
[424707624,1781068241000,-1875.9087212,0.00013699,2]
[424707619,1781068241000,-1875.9087212,0.00013699,2]
[424707629,1781068241000,-1875.9087212,0.00013699,2]
[424707621,1781068241000,-1875.9087212,0.00013699,2]
[424707623,1781068241000,-1875.9087212,0.00013699,2]
[424707620,1781068241000,-1875.9087212,0.00013699,2]
[424707625,1781068241000,-1875.9087212,0.00013699,2]
[424707627,1781068241000,-1875.9087212,0.00013699,2]
[424707626,1781068241000,-1875.9087212,0.00013699,2]
[424707628,1781068241000,-1875.9087212,0.00013699,2]
[424707631,1781068241000,-1875.9087212,0.00013699,2]
[424707634,1781068241000,-1875.9087212,0.00013699,2]
[424707635,1781068241000,-1875.9087212,0.00013699,2]
[424707618,1781068241000,-1875.9087212,0.00013699,2]
[424707658,1781068241000,-1875.9087212,0.00013699,2]
[424707651,1781068241000,-1875.9087212,0.00013699,2]
[424707660,1781068241000,-1875.9087212,0.00013699,2]
[424707687,1781068241000,-1837.28707106,0.00013699,2]
[424707684,1781068241000,-1837.28707106,0.00013699,2]
[424707685,1781068241000,-1837.28707106,0.00013699,2]
[424707689,1781068241000,-1837.28707106,0.00013699,2]
[424707688,1781068241000,-1837.28707106,0.00013699,2]
[424707691,1781068241000,-1837.28707106,0.00013699,2]
[424707692,1781068241000,-1837.28707106,0.00013699,2]
[424707693,1781068241000,-1837.28707106,0.00013699,2]
[424707694,1781068241000,-1837.28707106,0.00013699,2]
[424707697,1781068241000,-1837.28707108,0.00013699,2]
[424707695,1781068241000,-1837.28707106,0.00013699,2]
[424707698,1781068241000,-161.497766,0.0001371,2]
[424707699,1781068241000,-2695.294935,0.00013721,2]
[424707700,1781068241000,-2000.0,0.00013781,2]
[424707701,1781068241000,-356.08507408,0.00013781,2]
[424707702,1781068241000,-6787.42726137,0.00013784,2]
[424707704,1781068241000,-303.61066796,0.00013813,2]
[424707705,1781068241000,-24209.66824173,0.00013832,2]
[424707703,1781068241000,-303.48980098,0.00013797,2]
[424707706,1781068241000,-397.62632,0.00013847,2]
[424707659,1781068241000,-1875.9087212,0.00013699,2]
[424707690,1781068241000,-1837.28707106,0.00013699,2]
[424707686,1781068241000,-1837.28707106,0.00013699,2]
[424707696,1781068241000,-1837.28707108,0.00013699,2]
[424707682,1781068241000,-1837.28707106,0.00013699,2]
[424707683,1781068241000,-1837.28707106,0.00013699,2]
[424707665,1781068241000,-1837.28707106,0.00013699,2]
[424707664,1781068241000,-1837.28707106,0.00013699,2]
[424707667,1781068241000,-1837.28707106,0.00013699,2]
[424707662,1781068241000,-1875.9087212,0.00013699,2]
[424707663,1781068241000,-1875.9087212,0.00013699,2]
[424707666,1781068241000,-1837.28707106,0.00013699,2]
[424707661,1781068241000,-1875.9087212,0.00013699,2]
[424707669,1781068241000,-1837.28707106,0.00013699,2]
[424707670,1781068241000,-1837.28707106,0.00013699,2]
[424707668,1781068241000,-1837.28707106,0.00013699,2]
[424707674,1781068241000,-1837.28707106,0.00013699,2]
[424707672,1781068241000,-1837.28707106,0.00013699,2]
[424707676,1781068241000,-1837.28707106,0.00013699,2]
[424707673,1781068241000,-1837.28707106,0.00013699,2]
[424707675,1781068241000,-1837.28707106,0.00013699,2]
[424707679,1781068241000,-1837.28707106,0.00013699,2]
[424707677,1781068241000,-1837.28707106,0.00013699,2]
[424707678,1781068241000,-1837.28707106,0.00013699,2]
[424707680,1781068241000,-1837.28707106,0.00013699,2]
[424707671,1781068241000,-1837.28707106,0.00013699,2]
[424707681,1781068241000,-1837.28707106,0.00013699,2]
[424707738,1781068242000,-24209.66824173,0.00014366,2]
[424707743,1781068242000,-303.61066796,0.00014444,2]
[424707746,1781068242000,-303.48980098,0.00014468,2]
[424707741,1781068242000,-303.48980098,0.00014401,2]
[424707745,1781068242000,-201.164317,0.00014468,2]
[424707739,1781068242000,-303.61066796,0.00014369,2]
[424707742,1781068242000,-356.08507408,0.00014419,2]
[424707740,1781068242000,-356.08507408,0.00014385,2]
[424707737,1781068242000,-356.08507408,0.0001435,2]
[424707747,1781068242000,-356.08507408,0.00014484,2]
[424707749,1781068242000,-356.08507408,0.00014515,2]
[424707744,1781068242000,-356.08507408,0.00014452,2]
[424707761,1781068242000,-500.0,0.00014632,2]
[424707751,1781068242000,-303.48980098,0.00014531,2]
[424707748,1781068242000,-303.61066796,0.00014514,2]
[424707752,1781068242000,-180.739236,0.0001454,2]
[424707753,1781068242000,-356.08507408,0.00014545,2]
[424707759,1781068242000,-203.66,0.00014614,2]
[424707754,1781068242000,-250.0,0.00014564,2]
[424707756,1781068242000,-303.61066796,0.0001458,2]
[424707763,1781068242000,-303.61066796,0.00014642,2]
[424707760,1781068242000,-356.08507408,0.00014631,2]
[424707758,1781068242000,-356.08507408,0.00014603,2]
[424707762,1781068242000,-24209.66824173,0.00014633,2]
[424707736,1781068242000,-303.48980098,0.00014329,2]
[424707750,1781068242000,-6787.42726137,0.00014528,2]
[424707734,1781068242000,-303.61066796,0.00014287,2]
[424707710,1781068242000,-303.48980098,0.00013949,2]
[424707735,1781068242000,-356.08507408,0.00014313,2]
[424707755,1781068242000,-356.08507408,0.00014574,2]
[424707707,1781068242000,-356.08507408,0.00013864,2]
[424707709,1781068242000,-356.08507408,0.00013933,2]
[424707708,1781068242000,-160.0,0.000139,2]
[424707713,1781068242000,-500.0,0.00013989,2]
[424707712,1781068242000,-203.66,0.00013979,2]
[424707714,1781068242000,-26563.13130266,0.0001399,2]
[424707711,1781068242000,-303.61066796,0.00013972,2]
[424707715,1781068242000,-356.08507408,0.00013994,2]
[424707716,1781068242000,-250.0,0.00014,2]
[424707718,1781068242000,-356.08507408,0.0001405,2]
[424707717,1781068242000,-168.28,0.00014049,2]
[424707733,1781068242000,-356.08507408,0.00014275,2]
[424707719,1781068242000,-303.48980098,0.00014066,2]
[424707726,1781068242000,-303.48980098,0.00014164,2]
[424707720,1781068242000,-303.61066796,0.00014094,2]
[424707724,1781068242000,-356.08507408,0.00014148,2]
[424707725,1781068242000,-6787.42726137,0.00014156,2]
[424707723,1781068242000,-2000.0,0.00014104,2]
[424707722,1781068242000,-356.08507408,0.00014101,2]
[424707728,1781068242000,-356.08507408,0.00014192,2]
[424707727,1781068242000,-195.695558,0.00014167,2]
[424707730,1781068242000,-303.61066796,0.00014197,2]
[424707729,1781068242000,-500.0,0.00014193,2]
[424707732,1781068242000,-303.48980098,0.00014251,2]
[424707731,1781068242000,-356.08507408,0.00014235,2]
[424707721,1781068242000,-24209.66824173,0.00014099,2]
[424707757,1781068242000,-303.48980098,0.00014591,2]
[424707818,1781068242000,-151.0,0.00014997,2]
[424707765,1781068242000,-356.08507408,0.00014658,2]
[424707803,1781068242000,-640.46,0.00014899,2]
[424707806,1781068242000,-500.0,0.00014899,2]
[424707799,1781068242000,-160.0,0.0001488,2]
[424707801,1781068242000,-769.08,0.00014899,2]
[424707804,1781068242000,-500.0,0.00014899,2]
[424707805,1781068242000,-695.44,0.00014899,2]
[424707807,1781068242000,-5800.0,0.000149,2]
[424707811,1781068242000,-160.0,0.000149,3]
[424707812,1781068242000,-24209.66824173,0.000149,2]
[424707815,1781068242000,-6787.42726137,0.000149,2]